bitfinex/quotes_SOLUSD_20260208
["timestamp","ask_amount","ask_price","bid_price","bid_amount"]
[1770592052363,17.99419939,88.59,88.55,4.32316247]
[1770592052579,39.49096381,88.628,88.547,28.23338697]
[1770592052872,45.08729309,88.717,88.543,0.2648226]
[1770592052873,11.28808317,88.589,88.543,0.2648226]
[1770592053270,11.28808317,88.589,88.544,4.32316247]
[1770592053574,11.28808317,88.589,88.55,17.99419939]
[1770592053885,11.28808317,88.589,88.544,11.29382002]
[1770592054057,45.04,88.614,88.561,4.32316247]
[1770592054257,17.99419939,88.61,88.561,4.32316247]
[1770592054477,17.99419939,88.62,88.571,4.32316247]
[1770592054671,11.28158844,88.64,88.544,39.52837007]
[1770592054672,17.99419939,88.64,88.6,17.99419939]
[1770592055475,17.99419939,88.64,88.547,10.4911869]
[1770592055476,17.99419939,88.62,88.569,11.29055759]
[1770592055674,17.99419939,88.59,88.55,17.99419939]
[1770592055979,45.04,88.619,88.561,4.32316247]
[1770592056170,45.04,88.619,88.558,4.32316247]
[1770592056171,17.99419939,88.61,88.558,4.32316247]
[1770592056370,17.99419939,88.61,88.571,4.32316247]
[1770592056674,17.99419939,88.62,88.58,17.99419939]
[1770592056878,17.99419939,88.61,88.571,4.32316247]
[1770592057063,11.28553532,88.609,88.56,17.99419939]
[1770592057377,17.99419939,88.6,88.56,17.99419939]
[1770592057568,17.99419939,88.62,88.57,17.99419939]
[1770592057877,17.99419939,88.62,88.544,11.29382002]
[1770592057878,45.06,88.665,88.584,4.32316247]
[1770592058179,17.99419939,88.65,88.601,4.32316247]
[1770592058363,17.99419939,88.64,88.601,4.32316247]
[1770592058565,17.99419939,88.65,88.601,4.32316247]
[1770592058759,17.99419939,88.66,88.611,4.32316247]
[1770592058963,17.99419939,88.66,88.571,5.36086188]
[1770592058964,56.35903602,88.717,88.571,5.36086188]
[1770592058965,17.99419939,88.67,88.621,4.32316247]
[1770592059163,17.99419939,88.67,88.613,11.28502589]
[1770592059164,17.99419939,88.71,88.661,4.32316247]
[1770592059381,56.15082539,88.788,88.66,17.99419939]
[1770592059382,11.26625777,88.761,88.701,4.32316247]
[1770592059555,17.99419939,88.78,88.731,4.32316247]
[1770592059761,17.99419939,88.76,88.711,4.32316247]
[1770592060066,4.30903682,88.769,88.671,5.36086188]
[1770592060067,17.99419939,88.78,88.731,4.32316247]
[1770592060264,17.99419939,88.77,88.72,17.99419939]
[1770592060669,17.99419939,88.77,88.66,17.99419939]
[1770592060670,4.30903682,88.803,88.734,4.32316247]
[1770592060885,45.00317122,88.883,88.613,344.19328987]
[1770592060886,17.99419939,88.86,88.791,4.32316247]
[1770592061078,11.25298124,88.866,88.82,17.99419939]
[1770592061267,17.99419939,88.88,88.831,4.32316247]
[1770592061579,17.99419939,88.86,88.815,4.32316247]
[1770592061779,17.99419939,88.85,88.8,17.99419939]
[1770592061975,17.99419939,88.86,88.81,17.99419939]
[1770592062174,17.99419939,88.84,88.792,11.26227588]
[1770592062480,17.99419939,88.82,88.777,4.32316247]
[1770592062662,17.99419939,88.82,88.746,5.13032502]
[1770592062663,17.99419939,88.81,88.761,4.32316247]
[1770592062977,230.65065985,88.879,88.761,4.32316247]
[1770592062978,30.55892013,88.972,88.801,4.32316247]
[1770592063178,30.55892013,88.972,88.792,84.4670691]
[1770592063179,17.99419939,88.95,88.9,17.99419939]
[1770592063379,84.28007955,88.989,88.91,22.31736186]
[1770592063380,17.99419939,88.96,88.91,22.31736186]
[1770592063683,4.30903682,88.919,88.834,4.32316247]
[1770592063867,17.99419939,88.88,88.834,4.32316247]
[1770592064069,4.30903682,88.902,88.814,4.32316247]
[1770592064266,67.45548709,89.08,88.78,17.99419939]
[1770592064267,17.99419939,88.82,88.78,17.99419939]
[1770592064574,17.99419939,88.8,88.751,4.32316247]
[1770592064999,17.99419939,88.76,88.714,4.48139886]
[1770592065293,17.99419939,88.75,88.71,17.99419939]
[1770592065494,4.25503853,88.761,88.69,17.99419939]
[1770592065708,39.42373758,88.779,88.693,4.48139886]
[1770592065709,4.25503853,88.769,88.693,4.48139886]
[1770592065907,11.26392502,88.779,88.73,17.99419939]
[1770592066096,11.26392502,88.779,88.74,17.99419939]
[1770592066294,11.26265641,88.789,88.733,4.48139886]
[1770592066492,11.26265641,88.789,88.691,39.46285417]
[1770592066493,17.99419939,88.78,88.73,22.47559825]
[1770592066708,4.25503853,88.799,88.75,17.99419939]
[1770592066908,4.25503853,88.799,88.692,5.36086188]
[1770592066909,17.99419939,88.82,88.77,17.99419939]
[1770592067077,4.25503853,88.916,88.81,17.99419939]
[1770592067377,4.25503853,88.916,88.771,191.50398212]
[1770592067378,4.25503853,88.965,88.938,5.87132863]
[1770592067582,17.99419939,88.95,88.938,1.29240585]
[1770592067796,17.99419939,88.95,88.841,5.36086188]
[1770592067995,17.99419939,88.91,88.86,17.99419939]
[1770592068375,4.21248814,88.92,88.86,17.99419939]
[1770592068683,4.21248814,88.95,88.89,17.99419939]
[1770592068890,28.1006227,88.966,88.876,4.48139886]
[1770592069096,56.24133652,89.038,88.771,90.119521]
[1770592069097,11.23898579,88.976,88.94,17.99419939]
[1770592069395,17.99419939,88.98,88.923,4.48139886]
[1770592069595,4.21248814,88.98,88.891,4.48139886]
[1770592069798,4.21248814,88.98,88.92,17.99419939]
[1770592069992,4.21248814,88.98,88.877,39.3802671]
[1770592069993,17.99419939,88.99,88.94,17.99419939]
[1770592070195,17.99419939,88.98,88.93,22.47559825]
[1770592070381,84.26398218,89.006,88.888,4.48139886]
[1770592070382,17.99419939,88.95,88.888,4.48139886]
[1770592070697,17.99419939,88.95,88.9,17.99419939]
[1770592070899,84.26398218,89.006,88.93,17.99419939]
[1770592070900,88.47647032,89.006,88.93,17.99419939]
[1770592071199,17.99419939,88.99,88.94,17.99419939]
[1770592071401,17.99419939,89.0,88.95,17.99419939]
[1770592071585,17.99419939,88.99,88.95,17.99419939]
[1770592071781,45.0,89.008,88.97,17.99419939]
[1770592072183,17.99419939,89.0,88.96,17.99419939]
[1770592072388,17.99419939,88.99,88.932,4.48139886]
[1770592072584,17.99419939,88.97,88.93,17.99419939]
[1770592072805,45.0,89.008,88.96,17.99419939]
[1770592073003,11.23507139,89.007,88.97,17.99419939]
[1770592073201,11.23317831,89.022,88.98,17.99419939]
[1770592073403,17.99419939,89.02,88.98,17.99419939]
[1770592073599,11.23052907,89.043,88.991,4.48139886]
[1770592073911,17.99419939,89.05,89.011,4.48139886]
[1770592074107,17.99419939,89.02,88.97,17.99419939]
[1770592074313,44.98,89.056,88.951,11.24214455]
[1770592074314,4.47731074,89.144,88.957,4.48139886]
[1770592074514,4.21248814,89.041,88.881,4.48139886]
[1770592074689,17.99419939,88.98,88.942,4.48139886]
[1770592074883,17.99419939,88.99,88.942,4.48139886]
[1770592075096,4.21248814,89.019,88.942,4.48139886]
[1770592075299,17.99419939,89.0,88.942,15.72464205]
[1770592075601,17.99419939,89.0,88.87,45.00906712]
[1770592075602,17.99419939,88.98,88.943,4.48139886]
[1770592075999,39.31612409,89.022,88.899,4.48139886]
[1770592076000,17.99419939,88.96,88.899,4.48139886]
[1770592076306,17.99419939,88.93,88.88,22.47559825]
[1770592076514,17.99419939,88.93,88.882,4.48139886]
[1770592076805,17.99419939,88.93,88.881,11.25099852]
[1770592076806,17.99419939,88.98,88.921,4.48139886]
[1770592076989,11.23218945,89.03,88.971,4.48139886]
[1770592077192,29.22638884,89.03,88.98,17.99419939]
[1770592077619,17.99419939,89.02,88.98,17.99419939]
[1770592077995,29.22638884,89.03,88.99,17.99419939]
[1770592078190,11.23218945,89.03,89.0,17.99419939]
[1770592078414,11.22977237,89.049,89.0,17.99419939]
[1770592078793,17.99419939,89.01,88.97,17.99419939]
[1770592078987,11.23355688,89.019,88.98,17.99419939]
[1770592079709,11.23208681,89.031,89.0,17.99419939]
[1770592080112,11.23109316,89.039,89.0,17.99419939]
[1770592080407,4.21248814,89.037,88.97,17.99419939]
[1770592080609,17.99419939,89.02,88.97,29.23389351]
[1770592080811,11.23115972,89.038,88.972,4.48139886]
[1770592081010,17.99419939,89.03,88.98,17.99419939]
[1770592081389,17.99419939,89.03,88.96,4.48139886]
[1770592081390,44.92,89.029,88.961,4.48139886]
[1770592081595,44.92,89.029,88.916,5.13032502]
[1770592081596,17.99419939,88.98,88.93,17.99419939]
[1770592081795,17.99419939,88.98,88.931,4.48139886]
[1770592082092,17.99419939,88.98,88.836,45.02632331]
[1770592082093,17.99419939,88.94,88.894,4.48139886]
[1770592082299,17.99419939,88.9,88.855,4.48139886]
[1770592082509,4.21248814,88.931,88.855,4.48139886]
[1770592082717,17.99419939,88.88,88.84,4.48139886]
[1770592082935,17.99419939,88.86,88.822,4.48139886]
[1770592083212,44.92,88.895,88.791,4.48139886]
[1770592083213,17.99419939,88.84,88.791,4.48139886]
[1770592083512,17.99419939,88.84,88.72,45.08545537]
[1770592083513,17.99419939,88.82,88.78,17.99419939]
[1770592083809,4.21248814,88.844,88.78,17.99419939]
[1770592084012,17.99419939,88.83,88.79,17.99419939]
[1770592084215,17.99419939,88.84,88.795,11.26186672]
[1770592084411,44.95790459,88.973,88.831,4.48139886]
[1770592084599,17.99419939,88.89,88.85,17.99419939]
[1770592084800,17.99419939,88.86,88.811,4.48139886]
[1770592084997,17.99419939,88.83,88.79,22.47559825]
[1770592085196,17.99419939,88.82,88.78,17.88015939]
[1770592085399,11.2563176,88.839,88.76,17.99419939]
[1770592085400,17.99419939,88.8,88.76,17.99419939]
[1770592085600,17.99419939,88.79,88.74,29.26302895]
[1770592085800,17.99419939,88.78,88.745,11.2681619]
[1770592086022,4.21248814,88.803,88.74,17.99419939]
[1770592086208,17.99419939,88.77,88.73,17.99419939]
[1770592086400,4.21248814,88.821,88.751,4.48139886]
[1770592086595,17.99419939,88.79,88.75,17.99419939]
[1770592086797,4.21248814,88.801,88.733,4.48139886]
[1770592087117,17.99419939,88.76,88.723,11.2709239]
[1770592087299,17.99419939,88.77,88.73,17.99419939]
[1770592087507,17.99419939,88.77,88.723,11.2709239]
[1770592087707,5.36086188,88.833,88.75,17.99419939]
[1770592087708,17.99419939,88.8,88.75,17.99419939]
[1770592087906,17.99419939,88.8,88.723,11.2709239]
[1770592087907,4.21248814,88.817,88.76,17.99419939]
[1770592088126,17.99419939,88.78,88.74,17.99419939]
[1770592088310,4.21248814,88.8,88.75,17.99419939]
[1770592088512,17.99419939,88.79,88.75,17.99419939]
[1770592088710,17.99419939,88.77,88.73,17.99419939]
[1770592088916,17.99419939,88.75,88.71,17.99419939]
[1770592089115,5.13032502,88.815,88.604,45.1444477]
[1770592089116,17.99419939,88.74,88.7,17.99419939]
[1770592089322,15.47844354,88.763,88.72,17.99419939]
[1770592089323,44.94,88.753,88.72,17.99419939]
[1770592089524,17.99419939,88.75,88.71,17.99419939]
[1770592089823,4.21248814,88.732,88.657,4.48139886]
[1770592090013,17.99419939,88.72,88.68,17.99419939]
[1770592090222,44.94,88.733,88.65,17.99419939]
[1770592090223,17.99419939,88.69,88.65,17.99419939]
[1770592090399,17.99419939,88.68,88.64,29.27569699]
[1770592090721,17.99419939,88.68,88.552,1.12927997]
[1770592090722,17.99419939,88.65,88.601,11.28649446]
[1770592090907,17.99419939,88.65,88.6,17.99419939]
[1770592091107,17.99419939,88.63,88.59,17.99419939]
[1770592091837,4.17036325,88.677,88.6,4.48139886]
[1770592092001,45.06404191,88.763,88.6,4.48139886]
[1770592092002,4.17036325,88.658,88.6,17.99419939]
[1770592092204,17.99419939,88.65,88.61,17.99419939]
[1770592092527,17.99419939,88.65,88.6,17.99419939]
[1770592092723,17.99419939,88.65,88.61,17.99419939]
[1770592093023,39.46151937,88.694,88.55,17.99419939]
[1770592093024,11.27497406,88.692,88.64,17.99419939]
[1770592093219,11.27332168,88.705,88.66,17.99419939]
[1770592093410,17.99419939,88.7,88.66,17.99419939]
[1770592093616,44.98,88.706,88.641,11.28146117]
[1770592093801,44.98,88.706,88.67,17.99419939]
[1770592094002,17.99419939,88.72,88.67,17.99419939]
[1770592094331,17.99419939,88.71,88.66,17.99419939]
[1770592094509,17.99419939,88.7,88.66,17.99419939]
[1770592094828,17.99419939,88.7,88.649,4.48139886]
[1770592094829,44.98,88.719,88.68,17.99419939]
[1770592095208,17.99419939,88.71,88.677,11.27679748]
[1770592095526,17.99419939,88.7,88.661,11.27883193]
[1770592095717,17.99419939,88.69,88.661,11.27883193]
[1770592095925,17.99419939,88.69,88.604,5.36086188]
[1770592095926,17.99419939,88.68,88.625,28.20853509]
[1770592096102,17.99419939,88.7,88.66,17.99419939]
[1770592096420,17.99419939,88.7,88.588,45.15242558]
[1770592096421,44.98,88.719,88.69,17.99419939]
[1770592096808,17.99419939,88.76,88.71,17.99419939]
[1770592097014,17.99419939,88.75,88.71,17.99419939]
[1770592097318,45.0,88.751,88.711,11.2725592]
[1770592097821,17.99419939,88.74,88.693,11.27479508]
[1770592098017,45.0,88.751,88.71,17.99419939]
[1770592098223,17.99419939,88.75,88.71,17.99419939]
[1770592098405,45.0,88.749,88.71,17.99419939]
[1770592098609,45.0,88.775,88.74,17.99419939]
[1770592099018,45.0,88.775,88.722,4.22597129]
[1770592099019,17.99419939,88.77,88.722,4.22597129]
[1770592099224,17.99419939,88.76,88.704,4.22597129]
[1770592099431,17.99419939,88.79,88.75,17.99419939]
[1770592099611,4.12330372,88.83,88.751,4.22597129]
[1770592099819,4.12330372,88.83,88.731,11.27001837]
[1770592099820,17.99419939,88.82,88.77,17.99419939]
[1770592100520,17.99419939,88.8,88.739,4.22597129]
[1770592100719,17.99419939,88.78,88.74,17.99419939]
[1770592101432,45.0,88.784,88.721,11.27118218]
[1770592101433,17.99419939,88.76,88.721,11.27118218]
[1770592101724,17.99419939,88.76,88.72,17.99419939]
[1770592102135,17.99419939,88.76,88.61,1.12854079]
[1770592102136,17.99419939,88.75,88.71,17.99419939]
[1770592102336,17.99419939,88.75,88.7,17.99419939]
[1770592102531,17.99419939,88.76,88.71,17.99419939]
[1770592102911,45.0,88.784,88.74,17.99419939]
[1770592103118,45.0,88.784,88.69,5.13032502]
[1770592103119,45.0,88.784,88.76,17.99419939]
[1770592103433,45.0,88.784,88.694,5.36086188]
[1770592103434,17.99419939,88.78,88.721,4.22597129]
[1770592103608,17.99419939,88.78,88.634,45.12939758]
[1770592103609,4.12330372,88.801,88.76,17.99419939]
[1770592103910,39.4082014,88.814,88.754,4.22597129]
[1770592103911,17.99419939,88.79,88.754,4.22597129]
[1770592104117,17.99419939,88.79,88.75,17.99419939]
[1770592104317,17.99419939,88.8,88.76,17.99419939]
[1770592104627,17.99419939,88.79,88.75,17.99419939]
[1770592104821,45.0,88.799,88.75,17.99419939]
[1770592105010,17.99419939,88.79,88.75,17.99419939]
[1770592105214,17.99419939,88.79,88.732,4.22597129]
[1770592105215,17.99419939,88.78,88.74,17.99419939]
[1770592105415,11.26265641,88.789,88.72,17.99419939]
[1770592105416,17.99419939,88.76,88.72,17.99419939]
[1770592105730,45.0,88.759,88.72,17.99419939]
[1770592105945,17.99419939,88.75,88.7,17.99419939]
[1770592106231,17.99419939,88.75,88.595,45.14889472]
[1770592106232,17.99419939,88.71,88.67,17.99419939]
[1770592106532,45.0,88.709,88.66,17.99419939]
[1770592106730,17.99419939,88.7,88.66,17.99419939]
[1770592106939,17.96024533,88.73,88.691,4.22597129]
[1770592107120,17.96024533,88.72,88.68,17.96024533]
[1770592107320,17.96024533,88.71,88.673,4.22597129]
[1770592107518,17.96024533,88.7,88.66,17.96024533]
[1770592107724,17.96024533,88.71,88.664,11.27840802]
[1770592108124,45.0,88.736,88.7,17.96024533]
[1770592108639,45.0,88.736,88.634,5.13032502]
[1770592108640,17.96024533,88.71,88.672,4.22597129]
[1770592109131,17.96024533,88.7,88.672,4.22597129]
[1770592109332,17.96024533,88.7,88.572,45.16074779]
[1770592109333,11.27421136,88.698,88.641,4.22597129]
[1770592109533,11.27421136,88.698,88.651,4.22597129]
[1770592109534,45.0,88.697,88.651,4.22597129]
[1770592109712,45.0,88.697,88.631,39.48956911]
[1770592109713,45.0,88.697,88.68,17.96024533]
[1770592109915,45.0,88.697,88.671,4.22597129]
[1770592110114,17.96024533,88.71,88.671,4.22597129]
[1770592110317,17.96024533,88.68,88.63,18.16024533]
[1770592110517,17.96024533,88.67,88.63,0.2]
[1770592110737,17.96024533,88.67,88.631,4.22597129]
[1770592111141,17.96024533,88.66,88.63,0.2]
[1770592111324,17.96024533,88.65,88.63,0.15294047]
[1770592111526,45.02,88.662,88.63,18.1131858]
[1770592112044,45.02,88.662,88.63,0.15294047]
[1770592112045,17.96024533,88.64,88.63,0.15294047]
[1770592112226,17.96024533,88.67,88.63,18.1131858]
[1770592112419,15.35691762,88.693,88.63,18.1131858]
[1770592112420,11.27484694,88.693,88.65,17.96024533]
[1770592112619,45.02,88.676,88.64,17.96024533]
[1770592113456,17.96024533,88.66,88.63,0.15294047]
[1770592114018,17.96024533,88.65,88.63,0.15294047]
[1770592114218,17.96024533,88.67,88.63,22.33915709]
[1770592114533,45.02,88.684,88.651,4.22597129]
[1770592114733,45.02,88.684,88.66,17.96024533]
[1770592114935,45.02,88.684,88.632,39.48912356]
[1770592114936,4.08207068,88.739,88.671,4.22597129]
[1770592115142,17.96024533,88.73,88.68,17.96024533]
[1770592115333,17.96024533,88.71,88.671,4.22597129]
[1770592115645,11.27154273,88.719,88.68,17.96024533]
[1770592115822,11.27154273,88.719,88.63,0.15294047]
[1770592115823,4.08207068,88.689,88.633,4.22597129]
[1770592116021,17.96024533,88.67,88.633,4.22597129]
[1770592116226,17.96024533,88.68,88.64,17.96024533]
[1770592116427,17.96024533,88.67,88.633,4.22597129]
[1770592116924,45.04,88.679,88.633,4.22597129]
[1770592117121,17.96024533,88.65,88.63,0.15294047]
[1770592117349,45.04,88.679,88.63,0.15294047]
[1770592117557,17.96024533,88.67,88.63,22.33915709]
[1770592117854,56.31675409,88.678,88.63,0.15294047]
[1770592117855,17.96024533,88.66,88.63,0.15294047]
[1770592118640,84.50863933,88.678,88.63,0.15294047]
[1770592118823,17.96024533,88.66,88.63,0.15294047]
[1770592119024,17.96024533,88.65,88.63,0.15294047]
[1770592119221,17.96024533,88.66,88.63,0.15294047]
[1770592119427,17.96024533,88.66,88.564,5.13032502]
[1770592119428,4.08207068,88.649,88.564,4.22597129]
[1770592119622,4.08207068,88.629,88.573,11.29004625]
[1770592119837,17.96024533,88.61,88.574,4.22597129]
[1770592120122,40.54,88.612,88.592,4.22597129]
[1770592120326,56.97737054,88.711,88.543,5.62568448]
[1770592120327,45.04,88.648,88.611,4.22597129]
[1770592120528,45.04,88.665,88.62,17.96024533]
[1770592120832,49.16330372,88.665,88.63,17.96024533]
[1770592121023,45.04,88.672,88.63,17.96024533]
[1770592121227,4.12330372,88.669,88.62,17.96024533]
[1770592121450,17.96024533,88.66,88.601,4.22597129]
[1770592121743,17.96024533,88.67,88.63,17.96024533]
[1770592121924,11.2778987,88.669,88.621,4.22597129]
[1770592122246,11.2778987,88.669,88.62,17.96024533]
[1770592122247,11.2778987,88.669,88.631,4.22597129]
[1770592122545,17.96024533,88.66,88.62,22.18621662]
[1770592122743,45.04,88.672,88.63,22.18621662]
[1770592123049,56.31761417,88.672,88.64,17.96024533]
[1770592123247,11.27761417,88.672,88.64,17.96024533]
[1770592123549,17.96024533,88.65,88.606,4.22597129]
[1770592123736,17.96024533,88.66,88.61,17.96024533]
[1770592124047,45.04,88.659,88.613,11.28502116]
[1770592124245,45.04,88.659,88.621,4.22597129]
[1770592124547,45.04,88.669,88.63,22.18621662]
[1770592124752,45.04,88.669,88.631,4.22597129]
[1770592124928,11.27647704,88.681,88.64,22.33186209]
[1770592125247,45.04,88.68,88.641,4.37161676]
[1770592125447,11.2778987,88.669,88.63,17.96024533]
[1770592126132,39.47264545,88.669,88.624,4.37161676]
[1770592126645,17.96024533,88.66,88.62,17.96024533]
[1770592126946,17.96024533,88.65,88.61,17.96024533]
[1770592127152,45.06,88.649,88.609,4.37161676]
[1770592127340,45.06,88.649,88.6,17.96024533]
[1770592127341,17.96024533,88.64,88.6,17.96024533]
[1770592127645,17.96024533,88.61,88.57,17.96024533]
[1770592127847,17.96024533,88.6,88.561,4.37161676]
[1770592128053,17.96024533,88.6,88.56,17.96024533]
[1770592128645,45.06,88.62,88.581,4.37161676]
[1770592129243,45.06,88.62,88.59,17.96024533]
[1770592129445,45.06,88.62,88.534,5.13032502]
[1770592129446,17.96024533,88.66,88.611,4.37161676]
[1770592129746,17.96024533,88.62,88.58,22.33186209]
[1770592130147,17.96024533,88.62,88.58,4.37161676]
[1770592130347,45.06,88.619,88.58,4.37161676]
[1770592130535,45.06,88.619,88.59,17.96024533]
[1770592130739,17.96024533,88.61,88.57,17.96024533]
[1770592130945,17.96024533,88.61,88.463,45.21650712]
[1770592130946,4.00083747,88.608,88.541,4.37161676]
[1770592131129,4.00083747,88.608,88.47,0.2]
[1770592131130,45.06,88.607,88.57,17.96024533]
[1770592131335,17.96024533,88.61,88.57,17.96024533]
[1770592131645,11.28553532,88.609,88.57,17.96024533]
[1770592131841,17.96024533,88.59,88.55,17.96024533]
[1770592132045,17.96024533,88.59,88.544,4.37161676]
[1770592132241,4.00083747,88.599,88.56,17.96024533]
[1770592132446,17.96024533,88.59,88.55,17.96024533]
[1770592133555,39.50829109,88.589,88.55,17.96024533]
[1770592133757,84.56829109,88.589,88.55,17.96024533]
[1770592134552,4.5,88.603,88.58,17.96024533]
[1770592134734,7.12211556,88.604,88.551,11.29292723]
[1770592134735,7.12211556,88.604,88.59,17.96024533]
[1770592134935,7.12211556,88.604,88.58,17.96024533]
[1770592135131,11.28629956,88.603,88.551,11.29292723]
[1770592135337,17.96024533,88.6,88.56,17.96024533]
[1770592135537,4.5,88.597,88.56,17.96024533]
[1770592135969,17.96024533,88.59,88.536,11.29479655]
[1770592136153,17.96024533,88.59,88.455,40.66]
[1770592136154,4.5,88.588,88.54,17.96024533]
[1770592136341,4.5,88.559,88.52,18.16024533]
[1770592137044,45.08,88.587,88.54,17.96024533]
[1770592137045,4.5,88.584,88.54,17.96024533]
[1770592137246,4.5,88.583,88.54,17.96024533]
[1770592137647,7.139526,88.585,88.56,17.96024533]
[1770592138342,4.5,88.584,88.52,0.2]
[1770592138654,4.5,88.579,88.53,17.96024533]
[1770592139260,4.5,88.569,88.52,18.16024533]
[1770592139561,4.5,88.559,88.52,18.16024533]
[1770592139861,4.5,88.557,88.52,0.2]
[1770592140038,4.5,88.557,88.52,18.16024533]
[1770592140242,4.5,88.557,88.53,17.96024533]
[1770592140558,4.5,88.557,88.52,18.16024533]
[1770592140756,4.5,88.549,88.52,0.2]
[1770592140959,4.5,88.549,88.49,28.25153404]
[1770592140960,4.4,88.529,88.432,28.27024242]
[1770592141147,39.52212108,88.558,88.404,0.4]
[1770592141148,4.3,88.479,88.404,0.4]
[1770592141349,4.3,88.459,88.41,17.96024533]
[1770592141561,45.08,88.469,88.421,0.4]
[1770592141761,4.3,88.493,88.46,17.96024533]
[1770592141949,4.3,88.523,88.48,17.96024533]
[1770592142264,45.08,88.528,88.5,17.96024533]
[1770592142458,4.3,88.519,88.456,0.4]
[1770592142659,4.3,88.519,88.47,17.96024533]
[1770592142864,4.3,88.527,88.49,17.96024533]
[1770592143049,4.3,88.509,88.46,17.96024533]
[1770592143363,4.3,88.509,88.47,17.96024533]
[1770592143558,45.1,88.517,88.48,17.96024533]
[1770592143864,4.3,88.525,88.49,17.96024533]
[1770592144055,7.12437776,88.526,88.51,17.96024533]
[1770592144261,17.96024533,88.56,88.481,39.55651495]
[1770592144262,11.29114209,88.565,88.52,17.96024533]
[1770592144447,4.3,88.569,88.54,17.96024533]
[1770592144759,7.116976,88.571,88.55,17.96024533]
[1770592144976,7.116976,88.571,88.481,39.55651495]
[1770592144977,6.716976,88.571,88.56,17.96024533]
[1770592145155,6.716976,88.571,88.55,17.96024533]
[1770592145344,6.716976,88.571,88.56,17.96024533]
[1770592145667,17.96024533,88.61,88.56,17.96024533]
[1770592145668,7.13004129,88.641,88.561,39.52078228]
[1770592145860,4.5,88.629,88.561,39.52078228]
[1770592146056,4.5,88.629,88.58,17.96024533]
[1770592146367,4.5,88.629,88.561,39.52078228]
[1770592146368,4.5,88.639,88.6,17.96024533]
[1770592146547,4.5,88.639,88.61,17.96024533]
[1770592146751,7.13004129,88.641,88.63,17.96024533]
[1770592146949,4.5,88.673,88.63,17.96024533]
[1770592147161,45.1,88.68,88.65,17.96024533]
[1770592147668,7.12084809,88.736,88.66,17.96024533]
[1770592147860,4.5,88.715,88.67,17.96024533]
[1770592148064,11.27357491,88.704,88.67,17.96024533]
[1770592148266,4.5,88.716,88.661,11.27891632]
[1770592148456,11.27286278,88.709,88.67,17.96024533]
[1770592148650,11.273777,88.702,88.575,5.13032502]
[1770592148954,11.273777,88.702,88.564,45.16502261]
[1770592148955,4.5,88.701,88.68,17.96024533]
[1770592149156,17.96024533,88.7,88.66,17.96024533]
[1770592149359,4.5,88.701,88.67,17.96024533]
[1770592149569,4.5,88.717,88.68,17.96024533]
[1770592149944,4.5,88.735,88.681,11.27637261]
[1770592150150,4.5,88.735,88.7,17.96024533]
[1770592150564,4.5,88.729,88.68,17.96024533]
[1770592150761,4.5,88.729,88.572,45.16054367]
[1770592150762,4.5,88.719,88.67,17.96024533]
[1770592150954,4.5,88.699,88.66,17.96024533]
[1770592151148,4.5,88.699,88.65,17.96024533]
[1770592151467,4.5,88.699,88.66,17.96024533]
[1770592152052,11.27251835,88.712,88.67,17.96024533]
[1770592152356,4.5,88.711,88.67,17.96024533]
[1770592152556,4.5,88.711,88.68,17.96024533]
[1770592153246,4.5,88.729,88.68,17.96024533]
[1770592153449,4.5,88.729,88.69,17.96024533]
[1770592153771,4.5,88.719,88.68,17.96024533]
[1770592153969,4.5,88.717,88.68,17.96024533]
[1770592154160,4.5,88.717,88.626,5.13032502]
[1770592154161,4.5,88.709,88.631,28.20680603]
[1770592154463,4.5,88.709,88.616,5.13032502]
[1770592154464,4.5,88.727,88.69,17.96024533]
[1770592154672,45.08,88.738,88.7,17.96024533]
[1770592154847,49.58,88.738,88.7,17.96024533]
[1770592155045,49.58,88.738,88.71,17.96024533]
[1770592155250,49.58,88.738,88.681,39.46730415]
[1770592155251,4.5,88.738,88.681,39.46730415]
[1770592155451,4.5,88.738,88.71,17.96024533]
[1770592155650,4.5,88.738,88.72,17.96024533]
[1770592155865,4.5,88.755,88.72,17.96024533]
[1770592156071,4.5,88.753,88.71,17.96024533]
[1770592156265,4.5,88.753,88.72,17.96024533]
[1770592156471,4.5,88.753,88.681,28.19093154]
[1770592156658,4.5,88.749,88.71,17.96024533]
[1770592157558,4.5,88.749,88.73,17.96024533]
[1770592157760,4.5,88.739,88.7,17.96024533]
[1770592157957,4.5,88.729,88.68,17.96024533]
[1770592158160,4.5,88.699,88.66,17.96024533]
[1770592158457,17.96024533,88.72,88.68,17.96024533]
[1770592158662,4.5,88.719,88.68,17.96024533]
[1770592158977,4.5,88.699,88.64,11.28150373]
[1770592159161,4.5,88.689,88.65,17.96024533]
[1770592159361,45.06,88.707,88.62,17.96024533]
[1770592159362,4.5,88.659,88.62,17.96024533]